[Event "Titled Tuesday Blitz April 4 Late 2023"]
[White "Rustemov, Alexander"]
[Black "Skvortsov, Andrei"]
[WhiteFideId "4119002"]
[BlackFideId "24108600"]
[WhiteElo "2848"]
[BlackElo "2259"]
[Result "1-0"]
[Round "05"]
[TimeControl "180+2"]
[Date "2023.04.04"]
[WhiteClock "0:00:24"]
[BlackClock "0:00:13"]

1. c4 {[%clk 0:03:00]}  g6 {[%clk 0:02:42]} 2. Nc3 {[%clk 0:03:01]}  Bg7 {[%clk 0:02:40]} 3. d4 {[%clk 0:03:01]}  e6 {[%clk 0:02:40]} 4. Nf3 {[%clk 0:02:51]}  Ne7 {[%clk 0:02:37]} 5. e3 {[%clk 0:02:46]}  d5 {[%clk 0:02:34]} 6. cxd5 {[%clk 0:02:33]}  exd5 {[%clk 0:02:33]} 7. b4 {[%clk 0:02:32]}  O-O {[%clk 0:02:32]} 8. Be2 {[%clk 0:02:30]}  Bg4 {[%clk 0:02:29]} 9. O-O {[%clk 0:02:30]}  Nd7 {[%clk 0:02:26]} 10. a4 {[%clk 0:02:27]}  Nf6 {[%clk 0:02:25]} 11. b5 {[%clk 0:02:25]}  a6 {[%clk 0:02:24]} 12. Ba3 {[%clk 0:02:24]}  Re8 {[%clk 0:02:23]} 13. h3 {[%clk 0:02:23]}  Bxf3 {[%clk 0:02:22]} 14. Bxf3 {[%clk 0:02:23]}  axb5 {[%clk 0:02:22]} 15. axb5 {[%clk 0:02:20]}  Qd7 {[%clk 0:02:20]} 16. Qb3 {[%clk 0:02:17]}  c6 {[%clk 0:02:19]} 17. bxc6 {[%clk 0:02:13]}  bxc6 {[%clk 0:02:20]} 18. Bxe7 {[%clk 0:01:59]}  Qxe7 {[%clk 0:02:13]} 19. Rxa8 {[%clk 0:01:54]}  Rxa8 {[%clk 0:02:09]} 20. Na4 {[%clk 0:01:50]}  Bf8 {[%clk 0:02:01]} 21. Rb1 {[%clk 0:01:38]}  Qa3 {[%clk 0:01:58]} 22. Qxa3 {[%clk 0:01:34]}  Bxa3 {[%clk 0:01:59]} 23. Nc3 {[%clk 0:01:33]}  Bd6 {[%clk 0:01:49]} 24. Rc1 {[%clk 0:01:31]}  Kf8 {[%clk 0:01:44]} 25. Ne2 {[%clk 0:01:30]}  Ra6 {[%clk 0:01:39]} 26. g3 {[%clk 0:01:28]}  Ke7 {[%clk 0:01:37]} 27. Kg2 {[%clk 0:01:29]}  Nd7 {[%clk 0:01:34]} 28. Rc2 {[%clk 0:01:26]}  Nf8 {[%clk 0:01:34]} 29. Nc1 {[%clk 0:01:26]}  Ne6 {[%clk 0:01:33]} 30. Nd3 {[%clk 0:01:25]}  f6 {[%clk 0:01:33]} 31. h4 {[%clk 0:01:24]}  h5 {[%clk 0:01:31]} 32. Rb2 {[%clk 0:01:22]}  Ra7 {[%clk 0:01:30]} 33. Rb6 {[%clk 0:01:21]}  Rc7 {[%clk 0:01:30]} 34. Ra6 {[%clk 0:01:20]}  Nf8 {[%clk 0:01:27]} 35. Bd1 {[%clk 0:01:17]}  Ne6 {[%clk 0:01:22]} 36. Ba4 {[%clk 0:01:13]}  c5 {[%clk 0:01:21]} 37. dxc5 {[%clk 0:01:11]}  Nxc5 {[%clk 0:01:21]} 38. Nxc5 {[%clk 0:01:10]}  Bxc5 {[%clk 0:01:19]} 39. Bc2 {[%clk 0:01:06]}  Kf7 {[%clk 0:01:17]} 40. Bb3 {[%clk 0:01:03]}  Rd7 {[%clk 0:01:17]} 41. Ra5 {[%clk 0:01:03]}  Be7 {[%clk 0:01:12]} 42. Bxd5+ {[%clk 0:01:03]}  Kg7 {[%clk 0:01:12]} 43. e4 {[%clk 0:01:00]}  Bd6 {[%clk 0:01:10]} 44. Ra6 {[%clk 0:00:55]}  Be5 {[%clk 0:01:09]} 45. f4 {[%clk 0:00:52]}  Bd4 {[%clk 0:01:09]} 46. Ra4 {[%clk 0:00:50]}  Bc3 {[%clk 0:01:09]} 47. Rc4 {[%clk 0:00:50]}  Bb2 {[%clk 0:01:08]} 48. Kf3 {[%clk 0:00:50]}  Re7 {[%clk 0:01:08]} 49. Rc6 {[%clk 0:00:49]}  Ba1 {[%clk 0:01:08]} 50. g4 {[%clk 0:00:49]}  hxg4+ {[%clk 0:01:08]} 51. Kxg4 {[%clk 0:00:50]}  Bb2 {[%clk 0:01:05]} 52. h5 {[%clk 0:00:50]}  gxh5+ {[%clk 0:01:05]} 53. Kxh5 {[%clk 0:00:51]}  Bd4 {[%clk 0:01:03]} 54. Rc8 {[%clk 0:00:50]}  Be3 {[%clk 0:01:03]} 55. Kg4 {[%clk 0:00:46]}  Bd2 {[%clk 0:01:02]} 56. Kf5 {[%clk 0:00:45]}  Ra7 {[%clk 0:00:54]} 57. Rg8+ {[%clk 0:00:45]}  Kh7 {[%clk 0:00:54]} 58. Rg2 {[%clk 0:00:42]}  Bc3 {[%clk 0:00:53]} 59. Rc2 {[%clk 0:00:39]}  Bd4 {[%clk 0:00:53]} 60. Rd2 {[%clk 0:00:38]}  Bc3 {[%clk 0:00:52]} 61. Rd3 {[%clk 0:00:38]}  Bb2 {[%clk 0:00:52]} 62. Rg3 {[%clk 0:00:36]}  Re7 {[%clk 0:00:43]} 63. Be6 {[%clk 0:00:33]}  Ba1 {[%clk 0:00:41]} 64. Rg6 {[%clk 0:00:33]}  Bb2 {[%clk 0:00:40]} 65. Rxf6 {[%clk 0:00:32]}  Bxf6 {[%clk 0:00:39]} 66. Kxf6 {[%clk 0:00:33]}  Ra7 {[%clk 0:00:39]} 67. e5 {[%clk 0:00:33]}  Kh8 {[%clk 0:00:38]} 68. f5 {[%clk 0:00:34]}  Ra6 {[%clk 0:00:36]} 69. Ke7 {[%clk 0:00:33]}  Ra5 {[%clk 0:00:35]} 70. f6 {[%clk 0:00:31]}  Ra8 {[%clk 0:00:17]} 71. Bd7 {[%clk 0:00:28]}  Kg8 {[%clk 0:00:17]} 72. e6 {[%clk 0:00:27]}  Rf8 {[%clk 0:00:13]} 73. Be8 {[%clk 0:00:24]} 1-0


[Site "https://www.chess.com"]

[Event "Titled Tuesday Blitz April 4 Late 2023"]
[White "Jaracz, Pawel"]
[Black "Yeletsky, Ivan"]
[WhiteFideId "1102222"]
[BlackFideId "24180327"]
[WhiteElo "2438"]
[BlackElo "2422"]
[Result "0-1"]
[Round "05"]
[TimeControl "180+2"]
[Date "2023.04.04"]
[WhiteClock "0:00:12"]
[BlackClock "0:00:24"]

1. e4 {[%clk 0:03:00]}  e5 {[%clk 0:02:58]} 2. Nf3 {[%clk 0:03:00]}  Nf6 {[%clk 0:02:58]} 3. d3 {[%clk 0:02:58]}  Nc6 {[%clk 0:02:58]} 4. Be2 {[%clk 0:02:57]}  d5 {[%clk 0:02:57]} 5. Nbd2 {[%clk 0:02:57]}  g6 {[%clk 0:02:57]} 6. c3 {[%clk 0:02:56]}  Bg7 {[%clk 0:02:57]} 7. b4 {[%clk 0:02:54]}  O-O {[%clk 0:02:55]} 8. Bb2 {[%clk 0:02:50]}  Nh5 {[%clk 0:02:44]} 9. exd5 {[%clk 0:02:47]}  Ne7 {[%clk 0:02:41]} 10. c4 {[%clk 0:02:27]}  Nf4 {[%clk 0:02:31]} 11. O-O {[%clk 0:02:24]}  e4 {[%clk 0:02:29]} 12. Ne5 {[%clk 0:01:59]}  f6 {[%clk 0:02:11]} 13. Ng4 {[%clk 0:01:50]}  Nxe2+ {[%clk 0:02:11]} 14. Qxe2 {[%clk 0:01:50]}  Bxg4 {[%clk 0:02:11]} 15. Qxg4 {[%clk 0:01:50]}  f5 {[%clk 0:02:12]} 16. Qe2 {[%clk 0:01:45]}  Bxb2 {[%clk 0:02:12]} 17. Rab1 {[%clk 0:01:45]}  Bg7 {[%clk 0:01:44]} 18. dxe4 {[%clk 0:01:44]}  fxe4 {[%clk 0:01:45]} 19. Nxe4 {[%clk 0:01:42]}  Nf5 {[%clk 0:01:46]} 20. Nc5 {[%clk 0:01:43]}  Nd4 {[%clk 0:01:44]} 21. Qd3 {[%clk 0:01:42]}  Qg5 {[%clk 0:01:41]} 22. Kh1 {[%clk 0:01:31]}  b6 {[%clk 0:01:37]} 23. Na6 {[%clk 0:01:25]}  Qf4 {[%clk 0:01:31]} 24. Rbe1 {[%clk 0:01:17]}  Rae8 {[%clk 0:01:25]} 25. Rxe8 {[%clk 0:01:12]}  Rxe8 {[%clk 0:01:26]} 26. g3 {[%clk 0:01:11]}  Qd6 {[%clk 0:01:23]} 27. Rd1 {[%clk 0:00:57]}  b5 {[%clk 0:01:21]} 28. Nc5 {[%clk 0:00:55]}  bxc4 {[%clk 0:01:21]} 29. Qxc4 {[%clk 0:00:56]}  Qf6 {[%clk 0:01:11]} 30. f4 {[%clk 0:00:49]}  Kh8 {[%clk 0:01:07]} 31. Na6 {[%clk 0:00:23]}  Qf5 {[%clk 0:00:59]} 32. Rxd4 {[%clk 0:00:23]}  Qb1+ {[%clk 0:00:50]} 33. Kg2 {[%clk 0:00:23]}  Qb2+ {[%clk 0:00:51]} 34. Kh3 {[%clk 0:00:21]}  Qxd4 {[%clk 0:00:51]} 35. Qc6 {[%clk 0:00:21]}  Qe4 {[%clk 0:00:47]} 36. Nxc7 {[%clk 0:00:21]}  Rg8 {[%clk 0:00:43]} 37. Ne6 {[%clk 0:00:20]}  h6 {[%clk 0:00:32]} 38. Qd7 {[%clk 0:00:20]}  Qe2 {[%clk 0:00:28]} 39. d6 {[%clk 0:00:18]}  Qf1+ {[%clk 0:00:27]} 40. Kg4 {[%clk 0:00:19]}  Bf6 {[%clk 0:00:26]} 41. Ng5 {[%clk 0:00:11]}  hxg5 {[%clk 0:00:25]} 42. Qf7 {[%clk 0:00:12]}  Qe2+ {[%clk 0:00:24]} 43. Kh3 {[%clk 0:00:12]}  g4# {[%clk 0:00:24]} 0-1


[Site "https://www.chess.com"]

[Event "Titled Tuesday Blitz April 4 Late 2023"]
[White "Baskakov, Egor"]
[Black "Tsvetkov, Andrey"]
[WhiteFideId "24197866"]
[BlackFideId "34139360"]
[WhiteElo "2212"]
[BlackElo "2319"]
[Result "0-1"]
[Round "05"]
[TimeControl "180+2"]
[Date "2023.04.04"]
[WhiteClock "0:01:49"]
[BlackClock "0:00:31"]

1. e4 {[%clk 0:03:00]}  c5 {[%clk 0:02:59]} 2. Nf3 {[%clk 0:03:00]}  d6 {[%clk 0:02:58]} 3. d4 {[%clk 0:03:00]}  cxd4 {[%clk 0:02:59]} 4. Nxd4 {[%clk 0:03:01]}  Nf6 {[%clk 0:03:00]} 5. Nc3 {[%clk 0:03:02]}  a6 {[%clk 0:03:00]} 6. a4 {[%clk 0:03:02]}  g6 {[%clk 0:02:50]} 7. g3 {[%clk 0:03:02]}  Bg7 {[%clk 0:02:50]} 8. Bg2 {[%clk 0:03:02]}  O-O {[%clk 0:02:51]} 9. h3 {[%clk 0:03:03]}  Qc7 {[%clk 0:02:47]} 10. Nd5 {[%clk 0:03:01]}  Nxd5 {[%clk 0:02:43]} 11. exd5 {[%clk 0:03:02]}  Nd7 {[%clk 0:02:29]} 12. a5 {[%clk 0:03:02]}  b6 {[%clk 0:02:19]} 13. axb6 {[%clk 0:03:01]}  Qxb6 {[%clk 0:02:20]} 14. Nc6 {[%clk 0:02:54]}  Re8 {[%clk 0:02:04]} 15. O-O {[%clk 0:02:53]}  Bb7 {[%clk 0:02:01]} 16. Ra3 {[%clk 0:02:48]}  Qc7 {[%clk 0:01:44]} 17. Rc3 {[%clk 0:02:47]}  Bxc3 {[%clk 0:01:42]} 18. bxc3 {[%clk 0:02:48]}  Bxc6 {[%clk 0:01:40]} 19. dxc6 {[%clk 0:02:48]}  Ne5 {[%clk 0:01:40]} 20. c4 {[%clk 0:02:40]}  Nxc6 {[%clk 0:01:34]} 21. Bb2 {[%clk 0:02:41]}  Rab8 {[%clk 0:01:30]} 22. Ba1 {[%clk 0:02:40]}  Ne5 {[%clk 0:01:30]} 23. Bd5 {[%clk 0:02:37]}  e6 {[%clk 0:01:24]} 24. Bg2 {[%clk 0:02:38]}  Red8 {[%clk 0:01:23]} 25. f4 {[%clk 0:02:29]}  Nxc4 {[%clk 0:01:20]} 26. Kh1 {[%clk 0:02:28]}  Qc5 {[%clk 0:01:17]} 27. Bd4 {[%clk 0:02:27]}  Qa3 {[%clk 0:01:07]} 28. g4 {[%clk 0:02:24]}  Ne3 {[%clk 0:00:56]} 29. Rf3 {[%clk 0:02:18]}  Nxd1 {[%clk 0:00:40]} 30. Rxa3 {[%clk 0:02:19]}  Rdc8 {[%clk 0:00:40]} 31. Rxa6 {[%clk 0:02:16]}  Rxc2 {[%clk 0:00:37]} 32. Rxd6 {[%clk 0:02:16]}  Rd2 {[%clk 0:00:37]} 33. Kg1 {[%clk 0:01:55]}  Ne3 {[%clk 0:00:36]} 34. Be4 {[%clk 0:01:50]}  Nc2 {[%clk 0:00:31]} 35. Be5 {[%clk 0:01:49]}  Rb1# {[%clk 0:00:31]} 0-1


[Site "https://www.chess.com"]

[Event "Titled Tuesday Blitz April 4 Late 2023"]
[White "Timmermans, Mark"]
[Black "Poltorak, Sebastian"]
[WhiteFideId "1026399"]
[BlackFideId "1199498"]
[WhiteElo "2460"]
[BlackElo "2195"]
[Result "1-0"]
[Round "05"]
[TimeControl "180+2"]
[Date "2023.04.04"]
[WhiteClock "0:01:35"]
[BlackClock "0:00:04"]

1. e4 {[%clk 0:02:57]}  c6 {[%clk 0:02:59]} 2. c4 {[%clk 0:02:53]}  d5 {[%clk 0:02:50]} 3. exd5 {[%clk 0:02:51]}  cxd5 {[%clk 0:02:51]} 4. cxd5 {[%clk 0:02:50]}  Nf6 {[%clk 0:02:52]} 5. Nc3 {[%clk 0:02:49]}  Nxd5 {[%clk 0:02:51]} 6. Nf3 {[%clk 0:02:49]}  Nc6 {[%clk 0:02:51]} 7. Bb5 {[%clk 0:02:48]}  Nxc3 {[%clk 0:02:15]} 8. bxc3 {[%clk 0:02:49]}  Bd7 {[%clk 0:02:13]} 9. O-O {[%clk 0:02:47]}  e6 {[%clk 0:02:12]} 10. d4 {[%clk 0:02:46]}  Be7 {[%clk 0:02:13]} 11. Bd3 {[%clk 0:02:40]}  O-O {[%clk 0:02:06]} 12. Re1 {[%clk 0:02:39]}  Rc8 {[%clk 0:02:01]} 13. Qe2 {[%clk 0:02:39]}  Qa5 {[%clk 0:01:20]} 14. Bd2 {[%clk 0:02:38]}  Qh5 {[%clk 0:01:01]} 15. h3 {[%clk 0:02:37]}  Rfd8 {[%clk 0:00:43]} 16. Rab1 {[%clk 0:02:29]}  b6 {[%clk 0:00:43]} 17. Rb5 {[%clk 0:02:28]}  e5 {[%clk 0:00:38]} 18. Nxe5 {[%clk 0:02:15]}  Qxe2 {[%clk 0:00:38]} 19. Rxe2 {[%clk 0:02:16]}  Nxd4 {[%clk 0:00:32]} 20. cxd4 {[%clk 0:02:16]}  Bxb5 {[%clk 0:00:31]} 21. Bxb5 {[%clk 0:02:16]}  Bf6 {[%clk 0:00:21]} 22. Nc6 {[%clk 0:01:57]}  Rd5 {[%clk 0:00:12]} 23. a4 {[%clk 0:01:54]}  a5 {[%clk 0:00:08]} 24. Bf4 {[%clk 0:01:49]}  g6 {[%clk 0:00:08]} 25. Be5 {[%clk 0:01:48]}  Kg7 {[%clk 0:00:07]} 26. Kh2 {[%clk 0:01:46]}  Rf8 {[%clk 0:00:04]} 27. f4 {[%clk 0:01:38]}  Re8 {[%clk 0:00:05]} 28. g4 {[%clk 0:01:36]}  Bxe5 {[%clk 0:00:05]} 29. dxe5 {[%clk 0:01:36]}  Rc8 {[%clk 0:00:04]} 30. Ne7 {[%clk 0:01:35]} 1-0


[Site "https://www.chess.com"]

[Event "Titled Tuesday Blitz April 4 Late 2023"]
[White "Gokerkan, Cem Kaan"]
[Black "Roebers, Eline"]
[WhiteFideId "6336760"]
[BlackFideId "1058401"]
[WhiteElo "2365"]
[BlackElo "2525"]
[Result "1-0"]
[Round "05"]
[TimeControl "180+2"]
[Date "2023.04.04"]
[WhiteClock "0:00:37"]
[BlackClock "0:00:38"]

1. e4 {[%clk 0:03:00]}  c5 {[%clk 0:02:57]} 2. Nf3 {[%clk 0:03:00]}  e6 {[%clk 0:02:57]} 3. c3 {[%clk 0:03:00]}  Nf6 {[%clk 0:02:57]} 4. e5 {[%clk 0:03:00]}  Nd5 {[%clk 0:02:57]} 5. d4 {[%clk 0:03:01]}  cxd4 {[%clk 0:02:58]} 6. cxd4 {[%clk 0:03:01]}  d6 {[%clk 0:02:59]} 7. Bc4 {[%clk 0:03:01]}  Nb6 {[%clk 0:02:57]} 8. Bd3 {[%clk 0:02:58]}  Nc6 {[%clk 0:02:56]} 9. O-O {[%clk 0:02:58]}  Be7 {[%clk 0:02:51]} 10. Nc3 {[%clk 0:02:58]}  a6 {[%clk 0:02:50]} 11. Qe2 {[%clk 0:02:58]}  O-O {[%clk 0:02:48]} 12. Bf4 {[%clk 0:02:53]}  Nd5 {[%clk 0:02:16]} 13. Qe4 {[%clk 0:02:35]}  f5 {[%clk 0:02:11]} 14. exf6 {[%clk 0:02:36]}  Nxf6 {[%clk 0:02:10]} 15. Qe2 {[%clk 0:02:35]}  h6 {[%clk 0:02:04]} 16. Rfe1 {[%clk 0:02:30]}  Nb4 {[%clk 0:01:58]} 17. Bc4 {[%clk 0:02:24]}  Nbd5 {[%clk 0:01:47]} 18. Nxd5 {[%clk 0:02:22]}  Nxd5 {[%clk 0:01:44]} 19. Bxh6 {[%clk 0:01:59]}  Bf6 {[%clk 0:01:32]} 20. Bd2 {[%clk 0:01:57]}  Nc7 {[%clk 0:01:29]} 21. Rac1 {[%clk 0:01:52]}  b5 {[%clk 0:01:27]} 22. Bd3 {[%clk 0:01:51]}  Bb7 {[%clk 0:01:25]} 23. Be4 {[%clk 0:01:47]}  Nd5 {[%clk 0:01:21]} 24. Bb1 {[%clk 0:01:39]}  Re8 {[%clk 0:01:17]} 25. Qe4 {[%clk 0:01:39]}  Rc8 {[%clk 0:01:13]} 26. Qh7+ {[%clk 0:01:33]}  Kf8 {[%clk 0:01:11]} 27. Bg6 {[%clk 0:01:25]}  Ke7 {[%clk 0:00:55]} 28. Bxe8 {[%clk 0:01:09]}  Qxe8 {[%clk 0:00:56]} 29. Rxe6+ {[%clk 0:01:05]}  Kxe6 {[%clk 0:00:55]} 30. Re1+ {[%clk 0:01:05]}  Kf7 {[%clk 0:00:54]} 31. Qh5+ {[%clk 0:00:57]}  Kf8 {[%clk 0:00:53]} 32. Rxe8+ {[%clk 0:00:52]}  Rxe8 {[%clk 0:00:54]} 33. h3 {[%clk 0:00:49]}  Nb6 {[%clk 0:00:47]} 34. Bg5 {[%clk 0:00:46]}  Nd5 {[%clk 0:00:42]} 35. Bxf6 {[%clk 0:00:43]}  Nxf6 {[%clk 0:00:42]} 36. Qf5 {[%clk 0:00:38]}  Be4 {[%clk 0:00:38]} 37. Qf4 {[%clk 0:00:37]} 1-0


[Site "https://www.chess.com"]

[Event "Titled Tuesday Blitz April 4 Late 2023"]
[White "Jimenez Jimenez, Leandro"]
[Black "Makridis, Dimitrios"]
[WhiteFideId "6415253"]
[BlackFideId "25864475"]
[WhiteElo "2263"]
[BlackElo "2277"]
[Result "1/2-1/2"]
[Round "05"]
[TimeControl "180+2"]
[Date "2023.04.04"]
[WhiteClock "0:00:07"]
[BlackClock "0:00:17"]

1. d4 {[%clk 0:03:00]}  Nf6 {[%clk 0:02:57]} 2. c4 {[%clk 0:03:00]}  e6 {[%clk 0:02:54]} 3. Nf3 {[%clk 0:03:00]}  c5 {[%clk 0:02:53]} 4. g3 {[%clk 0:02:55]}  cxd4 {[%clk 0:02:51]} 5. Nxd4 {[%clk 0:02:56]}  d5 {[%clk 0:02:52]} 6. Bg2 {[%clk 0:02:51]}  e5 {[%clk 0:02:52]} 7. Nf3 {[%clk 0:02:47]}  d4 {[%clk 0:02:52]} 8. O-O {[%clk 0:02:45]}  Nc6 {[%clk 0:02:52]} 9. e3 {[%clk 0:02:44]}  Be7 {[%clk 0:02:48]} 10. exd4 {[%clk 0:02:43]}  exd4 {[%clk 0:02:49]} 11. b3 {[%clk 0:02:26]}  O-O {[%clk 0:02:37]} 12. Bb2 {[%clk 0:02:26]}  d3 {[%clk 0:02:34]} 13. Nc3 {[%clk 0:02:23]}  h6 {[%clk 0:02:33]} 14. Re1 {[%clk 0:02:00]}  Bf5 {[%clk 0:02:32]} 15. Ne5 {[%clk 0:01:58]}  Nxe5 {[%clk 0:02:31]} 16. Rxe5 {[%clk 0:01:58]}  Bg6 {[%clk 0:02:31]} 17. Nd5 {[%clk 0:01:54]}  Nxd5 {[%clk 0:02:30]} 18. Rxd5 {[%clk 0:01:52]}  Qc8 {[%clk 0:02:26]} 19. Qd2 {[%clk 0:01:23]}  Rd8 {[%clk 0:02:24]} 20. Re1 {[%clk 0:01:21]}  Bf8 {[%clk 0:02:22]} 21. Rxd8 {[%clk 0:01:15]}  Qxd8 {[%clk 0:02:22]} 22. Bxb7 {[%clk 0:01:15]}  Rb8 {[%clk 0:02:22]} 23. Bd5 {[%clk 0:01:12]}  a5 {[%clk 0:02:15]} 24. Bc3 {[%clk 0:00:52]}  Bb4 {[%clk 0:02:14]} 25. Bxb4 {[%clk 0:00:48]}  axb4 {[%clk 0:02:15]} 26. Re3 {[%clk 0:00:28]}  Qf6 {[%clk 0:02:08]} 27. Be4 {[%clk 0:00:24]}  Qa1+ {[%clk 0:01:53]} 28. Kg2 {[%clk 0:00:22]}  Qc3 {[%clk 0:01:48]} 29. Qxd3 {[%clk 0:00:19]}  Bxe4+ {[%clk 0:01:35]} 30. Qxe4 {[%clk 0:00:19]}  Qb2 {[%clk 0:01:35]} 31. Re2 {[%clk 0:00:18]}  Qf6 {[%clk 0:01:34]} 32. Qe5 {[%clk 0:00:18]}  Qc6+ {[%clk 0:01:33]} 33. Qd5 {[%clk 0:00:18]}  Qc7 {[%clk 0:01:32]} 34. Re3 {[%clk 0:00:17]}  Rd8 {[%clk 0:01:33]} 35. Qe4 {[%clk 0:00:17]}  Rd2 {[%clk 0:01:32]} 36. Qe8+ {[%clk 0:00:16]}  Kh7 {[%clk 0:01:31]} 37. Qe4+ {[%clk 0:00:17]}  g6 {[%clk 0:01:30]} 38. Rf3 {[%clk 0:00:17]}  Rxa2 {[%clk 0:01:29]} 39. h4 {[%clk 0:00:17]}  h5 {[%clk 0:01:28]} 40. Qd5 {[%clk 0:00:16]}  Kg7 {[%clk 0:01:25]} 41. c5 {[%clk 0:00:17]}  Rc2 {[%clk 0:01:24]} 42. Qd4+ {[%clk 0:00:17]}  Kg8 {[%clk 0:01:24]} 43. Qxb4 {[%clk 0:00:17]}  Rxc5 {[%clk 0:01:24]} 44. Qe4 {[%clk 0:00:16]}  Rc1 {[%clk 0:01:22]} 45. Qe8+ {[%clk 0:00:16]}  Kg7 {[%clk 0:01:22]} 46. Qe4 {[%clk 0:00:17]}  Qd7 {[%clk 0:01:21]} 47. Qe5+ {[%clk 0:00:17]}  Kg8 {[%clk 0:01:21]} 48. Qb8+ {[%clk 0:00:17]}  Rc8 {[%clk 0:01:20]} 49. Qf4 {[%clk 0:00:15]}  Rc7 {[%clk 0:01:18]} 50. b4 {[%clk 0:00:16]}  Rb7 {[%clk 0:01:18]} 51. Kh2 {[%clk 0:00:16]}  Qd5 {[%clk 0:01:16]} 52. Re3 {[%clk 0:00:15]}  Qa2 {[%clk 0:01:10]} 53. Re8+ {[%clk 0:00:14]}  Kg7 {[%clk 0:01:08]} 54. Qe5+ {[%clk 0:00:13]}  f6 {[%clk 0:01:08]} 55. Re7+ {[%clk 0:00:14]}  Kg8 {[%clk 0:00:57]} 56. Re8+ {[%clk 0:00:11]}  Kf7 {[%clk 0:00:54]} 57. Qe3 {[%clk 0:00:11]}  Qd5 {[%clk 0:00:48]} 58. Rc8 {[%clk 0:00:11]}  Qd7 {[%clk 0:00:48]} 59. Rc4 {[%clk 0:00:10]}  Kg7 {[%clk 0:00:48]} 60. Re4 {[%clk 0:00:11]}  Qd6 {[%clk 0:00:43]} 61. b5 {[%clk 0:00:10]}  Rxb5 {[%clk 0:00:39]} 62. Re7+ {[%clk 0:00:11]}  Kf8 {[%clk 0:00:39]} 63. Ra7 {[%clk 0:00:10]}  g5 {[%clk 0:00:33]} 64. hxg5 {[%clk 0:00:10]}  Rxg5 {[%clk 0:00:33]} 65. Qa3 {[%clk 0:00:08]}  Qxa3 {[%clk 0:00:31]} 66. Rxa3 {[%clk 0:00:09]}  Kf7 {[%clk 0:00:30]} 67. Ra4 {[%clk 0:00:08]}  Kg6 {[%clk 0:00:30]} 68. Kh3 {[%clk 0:00:09]}  Rc5 {[%clk 0:00:31]} 69. f4 {[%clk 0:00:09]}  Rc1 {[%clk 0:00:31]} 70. Ra2 {[%clk 0:00:09]}  Kf5 {[%clk 0:00:30]} 71. Ra5+ {[%clk 0:00:09]}  Ke4 {[%clk 0:00:26]} 72. Ra2 {[%clk 0:00:09]}  Ke3 {[%clk 0:00:19]} 73. Ra3+ {[%clk 0:00:06]}  Kf2 {[%clk 0:00:19]} 74. Ra2+ {[%clk 0:00:06]}  Kf3 {[%clk 0:00:19]} 75. Ra3+ {[%clk 0:00:07]}  Ke4 {[%clk 0:00:20]} 76. Ra4+ {[%clk 0:00:07]}  Kf5 {[%clk 0:00:20]} 77. Ra5+ {[%clk 0:00:08]}  Kg6 {[%clk 0:00:20]} 78. Ra2 {[%clk 0:00:07]}  Rd1 {[%clk 0:00:20]} 79. Kg2 {[%clk 0:00:06]}  Kf5 {[%clk 0:00:19]} 80. Kh3 {[%clk 0:00:06]}  Rh1+ {[%clk 0:00:19]} 81. Kg2 {[%clk 0:00:06]}  Rb1 {[%clk 0:00:20]} 82. Kh3 {[%clk 0:00:07]}  Rb3 {[%clk 0:00:19]} 83. Ra5+ {[%clk 0:00:07]}  Ke4 {[%clk 0:00:19]} 84. Rxh5 {[%clk 0:00:06]}  f5 {[%clk 0:00:18]} 85. Rh8 {[%clk 0:00:06]}  Rb1 {[%clk 0:00:18]} 86. Re8+ {[%clk 0:00:06]}  Kf3 {[%clk 0:00:18]} 87. Kh4 {[%clk 0:00:06]}  Rb7 {[%clk 0:00:16]} 88. Kg5 {[%clk 0:00:06]}  Rf7 {[%clk 0:00:16]} 89. Re5 {[%clk 0:00:06]}  Kxg3 {[%clk 0:00:16]} 90. Rxf5 {[%clk 0:00:06]}  Rg7+ {[%clk 0:00:16]} 91. Kf6 {[%clk 0:00:07]}  Rg4 {[%clk 0:00:16]} 92. Rg5 {[%clk 0:00:07]}  Kxf4 {[%clk 0:00:16]} 93. Rxg4+ {[%clk 0:00:07]}  Kxg4 {[%clk 0:00:17]} 1/2-1/2


[Site "https://www.chess.com"]

[Event "Titled Tuesday Blitz April 4 Late 2023"]
[White "Romero Ruscalleda, Josep"]
[Black "Gadimbayli, Abdulla"]
[WhiteFideId "2231859"]
[BlackFideId "13404938"]
[WhiteElo "2183"]
[BlackElo "2390"]
[Result "0-1"]
[Round "05"]
[TimeControl "180+2"]
[Date "2023.04.04"]
[WhiteClock "0:00:26"]
[BlackClock "0:00:47"]

1. e4 {[%clk 0:03:00]}  e5 {[%clk 0:02:52]} 2. Nf3 {[%clk 0:03:00]}  d5 {[%clk 0:02:52]} 3. Nxe5 {[%clk 0:02:58]}  Bd6 {[%clk 0:02:52]} 4. d4 {[%clk 0:02:57]}  dxe4 {[%clk 0:02:52]} 5. Nc4 {[%clk 0:02:55]}  Nf6 {[%clk 0:02:52]} 6. Nxd6+ {[%clk 0:02:54]}  Qxd6 {[%clk 0:02:53]} 7. Nc3 {[%clk 0:02:53]}  O-O {[%clk 0:02:53]} 8. Bg5 {[%clk 0:02:52]}  Nc6 {[%clk 0:02:53]} 9. Be3 {[%clk 0:02:34]}  Rd8 {[%clk 0:02:48]} 10. Nb5 {[%clk 0:02:12]}  Qe7 {[%clk 0:02:46]} 11. c3 {[%clk 0:02:10]}  Nd5 {[%clk 0:02:44]} 12. Qd2 {[%clk 0:02:04]}  Bg4 {[%clk 0:02:14]} 13. Be2 {[%clk 0:01:59]}  Bxe2 {[%clk 0:02:14]} 14. Qxe2 {[%clk 0:01:58]}  a6 {[%clk 0:02:15]} 15. Na3 {[%clk 0:01:57]}  Nxc3 {[%clk 0:02:15]} 16. bxc3 {[%clk 0:01:56]}  Qxa3 {[%clk 0:02:15]} 17. Qd2 {[%clk 0:01:53]}  Ne5 {[%clk 0:02:13]} 18. O-O {[%clk 0:01:47]}  Nc4 {[%clk 0:02:13]} 19. Qc2 {[%clk 0:01:46]}  Qe7 {[%clk 0:02:13]} 20. Rae1 {[%clk 0:01:43]}  Re8 {[%clk 0:02:09]} 21. Bc1 {[%clk 0:01:42]}  Qh4 {[%clk 0:01:47]} 22. Re2 {[%clk 0:01:34]}  Re6 {[%clk 0:01:43]} 23. Rfe1 {[%clk 0:01:33]}  Rae8 {[%clk 0:01:43]} 24. a4 {[%clk 0:01:14]}  h6 {[%clk 0:01:13]} 25. Qb3 {[%clk 0:01:11]}  Nd6 {[%clk 0:01:13]} 26. Qd5 {[%clk 0:01:05]}  c6 {[%clk 0:01:01]} 27. Qc5 {[%clk 0:00:59]}  Rg6 {[%clk 0:01:01]} 28. d5 {[%clk 0:00:45]}  Qh3 {[%clk 0:00:49]} 29. f3 {[%clk 0:00:40]}  exf3 {[%clk 0:00:46]} 30. Rxe8+ {[%clk 0:00:39]}  Nxe8 {[%clk 0:00:47]} 31. Rxe8+ {[%clk 0:00:38]}  Kh7 {[%clk 0:00:47]} 32. g3 {[%clk 0:00:26]}  Qg2# {[%clk 0:00:47]} 0-1


[Site "https://www.chess.com"]